lending/lending_fUSD_20251015
["ID","MTS","AMOUNT","RATE_DAILY","PERIOD"]
[391362902,1760569844073,-300.0,0.00019,2]
[391362903,1760569844082,-3906.6423434,0.00019,2]
[391362904,1760569844091,-150.8,0.00019011,2]
[391362905,1760569844102,-1000.0,0.00019021,2]
[391362906,1760569844113,-1000.0,0.00019021,2]
[391362907,1760569844123,-1000.0,0.00019021,2]
[391362908,1760569844133,-606.82443217,0.00019021,2]
[391362909,1760569844142,-1000.0,0.00019021,2]
[391362910,1760569844151,-1000.0,0.00019021,2]
[391362911,1760569844160,-1001.0879,0.00019099,2]
[391362912,1760569844170,-1000.0,0.00019099,2]
[391362913,1760569844179,-151.0,0.00019178,2]
[391362914,1760569844188,-2422.59,0.00019178,2]
[391362915,1760569844197,-5671.3219,0.0001923,2]
[391362916,1760569844206,-166.66,0.00019242,2]
[391362917,1760569844215,-151.0,0.00019372,2]
[391362918,1760569844224,-12802.18241077,0.00019389,2]
[391362919,1760569844234,-13271.78849198,0.00019389,2]
[391362920,1760569844243,-156.4,0.0001941,2]
[391362921,1760569844252,-1000.0,0.00019438,2]
[391362922,1760569844262,-1500.0,0.00019568,2]
[391362923,1760569844271,-1500.0,0.00019568,2]
[391362924,1760569844283,-301.61292239,0.00019568,2]
[391362925,1760569844292,-1264.84338753,0.00019568,2]
[391362926,1760569844302,-279.62400904,0.00019568,2]
[391362927,1760569844311,-500.0,0.00019673,2]
[391362928,1760569844320,-500.0,0.00019673,2]
[391362929,1760569844330,-203.88957228,0.00019673,2]
[391362930,1760569844339,-500.0,0.00019673,2]
[391362931,1760569844348,-500.0,0.00019673,2]
[391362932,1760569844358,-329.46969049,0.00019673,2]
[391362933,1760569844367,-168.23823262,0.00019673,2]
[391362934,1760569844376,-500.0,0.00019673,2]
[391362935,1760569844385,-500.0,0.00019673,2]
[391362936,1760569844394,-500.0,0.00019673,2]
[391362937,1760569844403,-500.0,0.00019673,2]
[391362938,1760569844412,-500.0,0.00019673,2]
[391362939,1760569844421,-500.0,0.00019673,2]
[391362940,1760569844431,-97336.0252463,0.000197,3]
[391362941,1760569844440,-475.49624517,0.000197,3]
[391362942,1760569844449,-156.587,0.00019726,2]
[391362943,1760569844459,-1000.0,0.00019764,2]
[391362944,1760569844468,-1600.0,0.0001981,2]
[391362945,1760569844477,-700.0,0.000199,7]
[391362946,1760569844487,-500.0,0.00019931,2]
[391362947,1760569844496,-500.0,0.00019931,2]
[391362948,1760569844505,-500.0,0.0001995,2]
[391362949,1760569844514,-500.0,0.0001997,2]
[391362950,1760569844523,-1815.298752,0.00019985,2]
[391362951,1760569844534,-150.8,0.0001999,2]
[391362952,1760569844543,-73391.57921488,0.0002,5]
[391362953,1760569844553,-238.20631776,0.0002,20]
[391362954,1760569844562,-2126.76742327,0.0002,3]
[391362955,1760569844572,-871.02861688,0.0002,2]
[391362956,1760569844581,-475.49624517,0.0002,7]
[391362957,1760569844590,-151.0,0.0002,5]
[391362958,1760569844600,-151.0,0.0002,7]
[391362959,1760569844609,-151.0,0.0002,7]
[391362960,1760569844618,-151.0,0.0002,7]
[391362961,1760569844627,-151.0,0.0002,7]
[391362962,1760569844636,-151.0,0.0002,7]
[391362963,1760569844646,-151.0,0.0002,7]
[391362964,1760569844655,-253.77237659,0.0002,7]
[391362965,1760569844664,-151.0,0.0002,7]
[391362966,1760569844674,-161.307276,0.0002,7]
[391362967,1760569844683,-161.647761,0.0002,7]
[391362968,1760569844693,-161.647761,0.0002,7]
[391362969,1760569844702,-161.647761,0.0002,7]
[391362970,1760569844711,-161.647761,0.0002,7]
[391362971,1760569844720,-151.0,0.0002,7]
[391362972,1760569844730,-151.0,0.0002,7]
[391362973,1760569844739,-151.0,0.0002,7]
[391362974,1760569844749,-151.0,0.0002,7]
[391362975,1760569844758,-151.0,0.0002,7]
[391362976,1760569844767,-151.0,0.0002,7]
[391362977,1760569844776,-151.0,0.0002,7]
[391362978,1760569844786,-151.0,0.0002,7]
[391362979,1760569844795,-151.0,0.0002,7]
[391362980,1760569844804,-151.0,0.0002,7]
[391362981,1760569844813,-151.0,0.0002,7]
[391362982,1760569844822,-151.0,0.0002,7]
[391362983,1760569844832,-151.0,0.0002,7]
[391362984,1760569844842,-151.0,0.0002,7]
[391362985,1760569844851,-151.0,0.0002,7]
[391362986,1760569844860,-151.0,0.0002,7]
[391362987,1760569844869,-151.0,0.0002,7]
[391362988,1760569844878,-151.0,0.0002,7]
[391362989,1760569844887,-152.468609,0.0002,7]
[391362990,1760569844896,-151.0,0.0002,7]
[391362991,1760569844905,-151.0,0.0002,7]
[391362992,1760569844914,-154.397952,0.0002,7]
[391362993,1760569844923,-151.0,0.0002,7]
[391362994,1760569844932,-151.0,0.0002,7]
[391362995,1760569844941,-151.0,0.0002,7]
[391362996,1760569844951,-163.298978,0.0002,7]
[391362997,1760569844960,-256.127876,0.0002,7]
[391362998,1760569844969,-151.0,0.0002,7]
[391362999,1760569844978,-151.0,0.0002,7]
[391363000,1760569844987,-156.368487,0.0002,7]
[391363001,1760569844996,-151.0,0.0002,7]
[391363002,1760569845005,-151.0,0.0002,7]
[391363003,1760569845014,-156.169009,0.0002,7]
[391363004,1760569845023,-151.0,0.0002,7]
[391363005,1760569845036,-151.0,0.0002,7]
[391363006,1760569845046,-151.0,0.0002,7]
[391363007,1760569845055,-151.0,0.0002,7]
[391363008,1760569845064,-151.0,0.0002,7]
[391363009,1760569845074,-233.569075,0.0002,7]
[391363010,1760569845083,-233.569075,0.0002,7]
[391363011,1760569845092,-233.569075,0.0002,7]
[391363012,1760569845102,-151.0,0.0002,7]
[391363013,1760569845113,-151.0,0.0002,7]
[391363014,1760569845122,-233.569075,0.0002,7]
[391363015,1760569845131,-230.703748,0.0002,7]
[391363016,1760569845141,-151.0,0.0002,7]
[391363017,1760569845150,-230.703748,0.0002,7]
[391363018,1760569845159,-230.703748,0.0002,7]
[391363019,1760569845169,-230.703748,0.0002,7]
[391363020,1760569845178,-151.0,0.0002,7]
[391363021,1760569845187,-151.0,0.0002,7]
[391363022,1760569845196,-226.160545,0.0002,7]
[391363023,1760569845205,-151.0,0.0002,7]
[391363024,1760569845215,-226.160545,0.0002,7]
[391363025,1760569845224,-151.0,0.0002,7]
[391363026,1760569845233,-226.160545,0.0002,7]
[391363027,1760569845242,-226.160545,0.0002,7]
[391363028,1760569845251,-151.0,0.0002,7]
[391363029,1760569845260,-151.0,0.0002,7]
[391363030,1760569845270,-151.0,0.0002,7]
[391363031,1760569845280,-151.0,0.0002,7]
[391363032,1760569845289,-151.0,0.0002,7]
[391363033,1760569845299,-151.0,0.0002,7]
[391363034,1760569845308,-244.10011,0.0002,7]
[391363035,1760569845317,-151.0,0.0002,7]
[391363036,1760569845327,-151.0,0.0002,7]
[391363037,1760569845336,-151.0,0.0002,7]
[391363038,1760569845346,-151.0,0.0002,7]
[391363039,1760569845355,-151.0,0.0002,7]
[391363040,1760569845364,-151.0,0.0002,7]
[391363041,1760569845374,-151.0,0.0002,7]
[391363042,1760569845383,-231.82958,0.0002,7]
[391363043,1760569845392,-231.82958,0.0002,7]
[391363044,1760569845401,-231.82958,0.0002,7]
[391363045,1760569845410,-151.0,0.0002,7]
[391363046,1760569845419,-231.82958,0.0002,7]
[391363047,1760569845428,-151.0,0.0002,7]
[391363048,1760569845437,-187.06671,0.0002,7]
[391363049,1760569845446,-151.0,0.0002,7]
[391363050,1760569845456,-151.0,0.0002,7]
[391363051,1760569845465,-151.0,0.0002,7]
[391363052,1760569845474,-151.0,0.0002,7]
[391363053,1760569845483,-153.777366,0.0002,7]
[391363054,1760569845492,-151.0,0.0002,7]
[391363055,1760569845502,-151.0,0.0002,7]
[391363056,1760569845511,-379.905128,0.0002,7]
[391363057,1760569845521,-151.0,0.0002,7]
[391363058,1760569845531,-379.905128,0.0002,7]
[391363059,1760569845540,-151.0,0.0002,7]
[391363060,1760569845550,-379.905128,0.0002,7]
[391363061,1760569845559,-182.162445,0.0002,7]
[391363062,1760569845568,-151.0,0.0002,7]
[391363063,1760569845577,-379.905128,0.0002,7]
[391363064,1760569845587,-151.0,0.0002,7]
[391363065,1760569845596,-151.0,0.0002,7]
[391363066,1760569845605,-151.0,0.0002,7]
[391363067,1760569845614,-155.3242,0.0002,7]
[391363068,1760569845623,-151.0,0.0002,7]
[391363069,1760569845633,-151.0,0.0002,7]
[391363070,1760569845642,-151.0,0.0002,7]
[391363071,1760569845652,-151.0,0.0002,7]
[391363072,1760569845661,-151.0,0.0002,7]
[391363073,1760569845670,-151.0,0.0002,7]
[391363074,1760569845679,-151.0,0.0002,7]
[391363075,1760569845688,-151.0,0.0002,7]
[391363076,1760569845698,-151.0,0.0002,7]
[391363077,1760569845707,-151.0,0.0002,7]
[391363078,1760569845716,-151.0,0.0002,7]
[391363079,1760569845725,-151.0,0.0002,7]
[391363080,1760569845734,-155.478318,0.0002,7]
[391363081,1760569845744,-151.0,0.0002,7]
[391363082,1760569845753,-151.0,0.0002,7]
[391363083,1760569845763,-397.682798,0.0002,7]
[391363084,1760569846187,-151.0,0.0002,7]
[391363085,1760569846198,-151.0,0.0002,7]
[391363086,1760569846209,-397.682798,0.0002,7]
[391363087,1760569846220,-151.88386,0.0002,7]
[391363088,1760569846229,-397.682798,0.0002,7]
[391363089,1760569846239,-151.787514,0.0002,7]
[391363090,1760569846249,-397.682798,0.0002,7]
[391363091,1760569846260,-151.0,0.0002,7]
[391363092,1760569846268,-151.0,0.0002,7]
[391363093,1760569846278,-151.0,0.0002,7]
[391363094,1760569846287,-151.0,0.0002,7]
[391363096,1760569846296,-151.0,0.0002,7]
[391363097,1760569846305,-224.191972,0.0002,7]
[391363098,1760569846315,-151.0,0.0002,7]
[391363099,1760569846324,-151.0,0.0002,7]
[391363100,1760569846334,-151.0,0.0002,7]
[391363101,1760569846349,-151.0,0.0002,7]
[391363102,1760569846358,-151.0,0.0002,7]
[391363103,1760569846367,-151.0,0.0002,7]
[391363104,1760569846376,-151.0,0.0002,7]
[391363105,1760569846385,-151.0,0.0002,7]
[391363106,1760569846395,-151.0,0.0002,7]
[391363107,1760569846404,-151.0,0.0002,7]
[391363108,1760569846413,-151.0,0.0002,7]
[391363109,1760569846422,-151.0,0.0002,7]
[391363110,1760569846431,-151.0,0.0002,7]
[391363111,1760569846442,-151.0,0.0002,7]
[391363112,1760569846451,-151.0,0.0002,7]
[391363113,1760569846460,-246.377504,0.0002,7]
[391363114,1760569846469,-151.0,0.0002,7]
[391363115,1760569846479,-151.0,0.0002,7]
[391363116,1760569846488,-151.0,0.0002,7]
[391363117,1760569846497,-239.5,0.0002,2]
[391363118,1760569846506,-151.0,0.0002,7]
[391363119,1760569846515,-151.0,0.0002,7]
[391363120,1760569846525,-268.550878,0.0002,7]
[391363121,1760569846536,-151.0,0.0002,7]
[391363122,1760569846545,-151.0,0.0002,7]
[391363123,1760569846554,-151.0,0.0002,7]
[391363124,1760569846563,-157.088398,0.0002,7]
[391363125,1760569846573,-151.0,0.0002,7]
[391363126,1760569846583,-157.088398,0.0002,7]
[391363127,1760569846592,-157.088398,0.0002,7]
[391363128,1760569846602,-151.0,0.0002,7]
[391363129,1760569846612,-157.088398,0.0002,7]
[391363130,1760569846622,-151.0,0.0002,2]
[391363131,1760569846632,-151.0,0.0002,7]
[391363132,1760569846641,-151.0,0.0002,7]
[391363133,1760569846651,-151.0,0.0002,7]
[391363134,1760569846660,-203.107754,0.0002,7]
[391363135,1760569846670,-184.598987,0.0002,7]
[391363136,1760569846679,-156.886335,0.0002,7]
[391363137,1760569846689,-151.0,0.0002,7]
[391363138,1760569846698,-375.417374,0.0002,7]
[391363139,1760569846707,-156.886335,0.0002,7]
[391363140,1760569846716,-375.417374,0.0002,7]
[391363141,1760569846726,-780.502411,0.0002,7]
[391363142,1760569846735,-156.886335,0.0002,7]
[391363143,1760569846745,-375.417374,0.0002,7]
[391363144,1760569846754,-780.502411,0.0002,7]
[391363145,1760569846764,-156.886335,0.0002,7]
[391363146,1760569846773,-780.502411,0.0002,7]
[391363147,1760569846784,-375.417374,0.0002,7]
[391363148,1760569846793,-780.502411,0.0002,7]
[391363149,1760569846803,-151.0,0.0002,7]
[391363150,1760569846813,-151.0,0.0002,7]
[391363151,1760569846822,-151.0,0.0002,7]
[391363152,1760569846831,-151.0,0.0002,7]
[391363153,1760569846841,-151.0,0.0002,7]
[391363154,1760569846850,-151.0,0.0002,7]
[391363155,1760569846859,-151.0,0.0002,7]
[391363156,1760569846869,-167.226674,0.0002,7]
[391363157,1760569846878,-151.0,0.0002,7]
[391363158,1760569846887,-151.0,0.0002,7]
[391363159,1760569846896,-151.0,0.0002,7]
[391363160,1760569846905,-151.0,0.0002,7]
[391363161,1760569846914,-151.0,0.0002,7]
[391363162,1760569846924,-210.698373,0.0002,7]
[391363163,1760569846933,-151.0,0.0002,7]
[391363164,1760569846943,-151.0,0.0002,7]
[391363165,1760569846952,-151.0,0.0002,7]
[391363166,1760569846962,-302.258774,0.0002,7]
[391363167,1760569846971,-151.0,0.0002,7]
[391363168,1760569846980,-302.258774,0.0002,7]
[391363169,1760569846989,-302.258774,0.0002,7]
[391363170,1760569847000,-706.355919,0.0002,7]
[391363171,1760569847009,-302.258774,0.0002,7]
[391363172,1760569847019,-706.355919,0.0002,7]
[391363173,1760569847032,-706.355919,0.0002,7]
[391363174,1760569847043,-706.355919,0.0002,7]
[391363175,1760569847053,-151.0,0.0002,7]
[391363176,1760569847062,-151.0,0.0002,7]
[391363177,1760569847072,-151.0,0.0002,7]
[391363178,1760569847081,-151.0,0.0002,7]
[391363179,1760569847090,-151.0,0.0002,7]
[391363180,1760569847100,-151.0,0.0002,7]
[391363181,1760569847110,-151.0,0.0002,7]
[391363182,1760569847119,-151.0,0.0002,7]
[391363183,1760569847135,-202.327608,0.0002,7]
[391363184,1760569847150,-151.0,0.0002,7]
[391363185,1760569847159,-151.0,0.0002,7]
[391363186,1760569847169,-151.0,0.0002,7]
[391363187,1760569847178,-151.0,0.0002,7]
[391363188,1760569847187,-151.0,0.0002,7]
[391363189,1760569847196,-151.0,0.0002,7]
[391363190,1760569847205,-151.0,0.0002,7]
[391363191,1760569847214,-151.0,0.0002,7]
[391363192,1760569847223,-151.0,0.0002,7]
[391363193,1760569847233,-151.0,0.0002,7]
[391363194,1760569847242,-151.0,0.0002,7]
[391363195,1760569847255,-151.0,0.0002,7]
[391363196,1760569847274,-151.0,0.0002,7]
[391363197,1760569847287,-151.0,0.0002,7]
[391363198,1760569847296,-151.0,0.0002,7]
[391363199,1760569847306,-151.0,0.0002,7]
[391363200,1760569847315,-151.0,0.0002,7]
[391363201,1760569847324,-151.0,0.0002,7]
[391363202,1760569847333,-151.0,0.0002,7]
[391363203,1760569847343,-151.0,0.0002,7]
[391363204,1760569847352,-151.0,0.0002,7]
[391363205,1760569847362,-151.0,0.0002,7]
[391363206,1760569847371,-1601.717015,0.0002,7]
[391363207,1760569847381,-1601.717015,0.0002,7]
[391363208,1760569847390,-1601.717015,0.0002,7]
[391363209,1760569847400,-1601.717015,0.0002,7]
[391363210,1760569847409,-683.49538,0.0002,7]
[391363211,1760569847418,-555.420129,0.00020018,2]
[391363212,1760569847428,-21968.8998052,0.00020025,2]
[391363213,1760569847437,-500.0,0.00020029,2]
[391363214,1760569847446,-500.0,0.00020029,2]
[391363215,1760569847455,-834.39135188,0.00020043,2]
[391363216,1760569847464,-331.55,0.00020063,2]
[391363217,1760569847474,-150.8,0.00020106,2]
[391363218,1760569847483,-2000.0,0.00020116,2]
[391363219,1760569847492,-2000.0,0.00020116,2]
[391363220,1760569847501,-1000.0,0.00020116,2]
[391363221,1760569847510,-584.48,0.00020187,2]
[391363222,1760569847520,-162.65,0.00020211,2]
[391363223,1760569847529,-173.95251719,0.00020221,2]
[391363224,1760569847538,-1000.0,0.00020221,2]
[391363225,1760569847547,-1000.0,0.00020221,2]
[391363226,1760569847557,-1000.0,0.00020221,2]
[391363227,1760569847566,-1000.0,0.00020221,2]
[391363228,1760569847576,-1000.0,0.00020221,2]
[391363229,1760569847585,-629.57878898,0.00020221,2]
[391363230,1760569847595,-1000.0,0.00020221,2]
[391363231,1760569847604,-5671.32191,0.0002023,2]
[391363232,1760569847613,-239.5,0.00020274,2]
[391363233,1760569847623,-162.380719,0.00020274,2]
[391363234,1760569847633,-475.49624517,0.000203,3]
[391363235,1760569847642,-587.0,0.00020326,2]
[391363236,1760569847653,-151.0,0.0002035,2]
[391363237,1760569847662,-12802.18241077,0.00020377,2]
[391363238,1760569847677,-13271.78849198,0.00020377,2]
[391363239,1760569847686,-359.76686082,0.00020467,2]
[391363240,1760569847696,-1000.0,0.00020479,2]
[391363241,1760569847706,-1000.0,0.00020479,2]
[391363242,1760569847715,-1000.0,0.00020498,2]
[391363243,1760569847725,-500.0,0.000205,2]
[391363244,1760569847734,-239.5,0.00020548,2]
[391363245,1760569847744,-1000.0,0.00020577,2]
[391363246,1760569847754,-953.01109474,0.00020577,2]
[391363247,1760569847764,-2500.0,0.00020664,2]
[391363248,1760569847774,-581.07346294,0.00020664,2]
[391363249,1760569847783,-18814.37033342,0.000207,2]
[391363250,1760569847793,-1500.0,0.00020768,2]
[391363251,1760569847804,-1500.0,0.00020768,2]
[391363252,1760569847814,-1500.0,0.00020768,2]
[391363253,1760569847823,-1500.0,0.00020768,2]
[391363254,1760569847833,-1500.0,0.00020768,2]
[391363255,1760569847842,-1500.0,0.00020768,2]
[391363256,1760569847852,-1000.0,0.00020795,2]
[391363257,1760569847861,-214.4,0.000208,2]
[391363258,1760569847870,-214.4,0.000208,2]
[391363259,1760569847880,-239.5,0.00020822,2]
[391363260,1760569847890,-168.38880561,0.00020822,2]
[391363261,1760569847899,-11318.71702542,0.0002085,2]
[391363262,1760569847908,-500.0,0.0002097,2]
[391363263,1760569847918,-565.33173278,0.00021,2]
[391363264,1760569847928,-6663.13193156,0.00021,2]
[391363265,1760569847937,-350.0,0.00021,2]
[391363266,1760569847947,-1500.0,0.00021027,2]
[391363267,1760569847956,-1500.0,0.00021027,2]
[391363268,1760569847966,-1267.0,0.00021031,2]
[391363269,1760569847975,-749.0,0.00021031,2]
[391363270,1760569847984,-3407.0,0.00021031,2]
[391363271,1760569847993,-571.0,0.00021031,2]
[391363272,1760569848003,-1583.0,0.00021031,2]
[391363273,1760569848012,-4014.0,0.00021031,2]
[391363274,1760569848022,-2545.0,0.00021031,2]
[391363275,1760569848035,-1500.0,0.00021046,2]
[391363276,1760569848044,-500.0,0.00021048,2]
[391363277,1760569848053,-239.54,0.00021096,2]
[391363278,1760569848062,-417.0,0.000211,2]
[391363279,1760569848071,-269.89620817,0.00021125,2]
[391363280,1760569848082,-2243.73445518,0.00021212,2]
[391363281,1760569848092,-1516.26586392,0.00021212,2]
[391363282,1760569848102,-5671.3219,0.0002123,2]
[391363283,1760569848113,-161.7401284,0.00021275,2]
[391363284,1760569848123,-209.52158085,0.00021316,2]
[391363285,1760569848132,-1908.35252044,0.00021316,2]
[391363286,1760569848141,-2000.0,0.00021316,2]
[391363287,1760569848150,-3076.0,0.00021317,2]
[391363288,1760569848160,-151.0,0.00021328,2]
[391363289,1760569848170,-12802.18241077,0.00021366,2]
[391363290,1760569848179,-13271.78849198,0.00021366,2]
[391363291,1760569848188,-6287.39,0.0002137,2]
[391363292,1760569848198,-151.0,0.00021381,2]
[391363293,1760569848208,-277.35679052,0.00021381,2]
[391363294,1760569848217,-9552.16786547,0.00021381,2]
[391363295,1760569848227,-721.12765535,0.00021381,2]
[391363296,1760569848236,-160.0,0.00021381,2]
[391363297,1760569848246,-322.6107,0.00021381,2]
[391363298,1760569848255,-151.0,0.00021381,7]
[391363299,1760569848264,-151.0,0.00021381,7]
[391363300,1760569848273,-157.088398,0.00021381,7]
[391363301,1760569848283,-151.0,0.00021381,7]
[391363302,1760569848293,-157.088398,0.00021381,7]
[391363303,1760569848302,-157.088398,0.00021381,7]
[391363304,1760569848311,-151.0,0.00021381,7]
[391363305,1760569848320,-157.088398,0.00021381,7]
[391363306,1760569848329,-151.0,0.00021381,2]
[391363307,1760569848339,-151.0,0.00021381,7]
[391363308,1760569848349,-195.619639,0.00021381,7]
[391363309,1760569848359,-151.0,0.00021381,7]
[391363310,1760569848368,-156.886335,0.00021381,7]
[391363311,1760569848377,-151.0,0.00021381,7]
[391363312,1760569848386,-375.417374,0.00021381,7]
[391363313,1760569848395,-156.886335,0.00021381,7]
[391363314,1760569848404,-375.417374,0.00021381,7]
[391363315,1760569848413,-780.502411,0.00021381,7]
[391363316,1760569848423,-156.886335,0.00021381,7]
[391363317,1760569848433,-375.417374,0.00021381,7]
[391363318,1760569848443,-780.502411,0.00021381,7]
[391363319,1760569848452,-156.886335,0.00021381,7]
[391363320,1760569848463,-780.502411,0.00021381,7]
[391363321,1760569848472,-375.417374,0.00021381,7]
[391363322,1760569848481,-780.502411,0.00021381,7]
[391363323,1760569848490,-151.0,0.00021381,7]
[391363324,1760569848499,-151.0,0.00021381,7]
[391363325,1760569848509,-156.48441,0.00021381,7]
[391363326,1760569848518,-151.0,0.00021381,7]
[391363327,1760569848528,-151.0,0.00021381,7]
[391363328,1760569848537,-151.0,0.00021381,7]
[391363329,1760569848547,-275.81480011,0.00021381,7]
[391363330,1760569848557,-151.0,0.00021381,7]
[391363331,1760569848566,-151.0,0.00021381,7]
[391363332,1760569848576,-151.0,0.00021381,7]
[391363333,1760569848586,-151.0,0.00021381,7]
[391363334,1760569848595,-1601.717015,0.00021381,7]
[391363335,1760569848605,-1601.717015,0.00021381,7]
[391363336,1760569848615,-1601.717015,0.00021381,7]
[391363337,1760569848624,-1601.717015,0.00021381,7]
[391363338,1760569848634,-683.49538,0.00021381,7]
[391363339,1760569848643,-9905.5980765,0.00021436,2]
[391363340,1760569848653,-151.0,0.00021436,7]
[391363341,1760569848662,-151.0,0.00021436,7]
[391363342,1760569848671,-151.0,0.00021436,7]
[391363343,1760569848681,-151.0,0.00021436,7]
[391363344,1760569848690,-397.682798,0.00021436,7]
[391363345,1760569848699,-151.0,0.00021436,7]
[391363346,1760569848708,-397.682798,0.00021436,7]
[391363347,1760569848718,-397.682798,0.00021436,7]
[391363348,1760569848727,-397.682798,0.00021436,7]
[391363349,1760569848736,-151.0,0.00021436,7]
[391363350,1760569848746,-151.0,0.00021436,7]
[391363351,1760569848755,-151.0,0.00021436,7]
[391363352,1760569848764,-151.0,0.00021436,7]
[391363353,1760569848773,-151.0,0.00021436,7]
[391363354,1760569848783,-151.0,0.00021436,7]
[391363355,1760569848792,-151.0,0.00021436,7]
[391363356,1760569848801,-151.0,0.00021436,7]
[391363357,1760569848810,-151.0,0.00021436,7]
[391363358,1760569848819,-151.0,0.00021436,7]
[391363359,1760569848829,-151.0,0.00021436,7]
[391363360,1760569848838,-151.0,0.00021436,7]
[391363361,1760569848847,-151.0,0.00021436,7]
[391363362,1760569848856,-151.0,0.00021436,7]
[391363363,1760569848866,-154.916597,0.00021436,7]
[391363364,1760569848875,-151.0,0.00021436,7]
[391363365,1760569848884,-151.0,0.00021436,7]
[391363366,1760569848893,-151.0,0.00021436,7]
[391363367,1760569848902,-151.0,0.00021436,7]
[391363368,1760569848911,-151.0,0.00021436,7]
[391363369,1760569848920,-151.0,0.00021436,7]
[391363370,1760569848929,-151.0,0.00021436,7]
[391363371,1760569848938,-151.0,0.00021436,7]
[391363372,1760569848948,-151.0,0.00021436,7]
[391363373,1760569848957,-151.0,0.00021436,7]
[391363374,1760569848967,-151.0,0.00021436,7]
[391363375,1760569848976,-151.0,0.00021436,7]
[391363376,1760569848986,-151.0,0.00021436,7]
[391363377,1760569848995,-151.0,0.00021436,7]
[391363378,1760569849004,-151.0,0.00021436,7]
[391363379,1760569849013,-151.0,0.00021436,7]
[391363380,1760569849022,-302.258774,0.00021436,7]
[391363381,1760569849034,-151.0,0.00021436,7]
[391363382,1760569849044,-302.258774,0.00021436,7]
[391363383,1760569849053,-302.258774,0.00021436,7]
[391363384,1760569849062,-706.355919,0.00021436,7]
[391363385,1760569849073,-302.258774,0.00021436,7]
[391363386,1760569849082,-706.355919,0.00021436,7]
[391363387,1760569849091,-706.355919,0.00021436,7]
[391363388,1760569849100,-706.355919,0.00021436,7]
[391363389,1760569849111,-151.0,0.00021436,7]
[391363390,1760569849120,-151.0,0.00021436,7]
[391363391,1760569849129,-257.788045,0.00021436,7]
[391363392,1760569849139,-151.0,0.00021436,7]
[391363393,1760569849149,-151.0,0.00021436,7]
[391363394,1760569849158,-151.0,0.00021436,7]
[391363395,1760569849168,-151.0,0.00021436,7]
[391363396,1760569849177,-151.0,0.00021436,7]
[391363397,1760569849186,-151.0,0.00021436,7]
[391363398,1760569849195,-151.0,0.00021436,7]
[391363399,1760569849205,-151.0,0.00021436,7]
[391363400,1760569849214,-151.0,0.00021436,7]
[391363401,1760569849223,-151.0,0.00021436,7]
[391363402,1760569849233,-151.0,0.00021436,7]